[Event "*** SCC Grand Prix: Titled Tuesday Blitz"]
[Site "Chess.com"]
[Date "2020.06.02"]
[Round "7"]
[White "Kaua18"]
[Black "Bastiandash"]
[Result "0-1"]
[WhiteElo "2304"]
[BlackElo "2123"]
[TimeControl "180+1"]
[EndTime "11:19:51 PDT"]
[Termination "Bastiandash won by checkmate"]

1. e4 {[%clk 0:03:00.1]} 1... c5 {[%clk 0:02:58.9]} 2. Nf3 {[%clk 0:03:00.3]}
2... e6 {[%clk 0:02:58.8]} 3. d4 {[%clk 0:03:01.2]} 3... cxd4 {[%clk 0:02:59.7]}
4. Nxd4 {[%clk 0:03:01.5]} 4... a6 {[%clk 0:03:00.1]} 5. Bd3 {[%clk 0:03:00.4]}
5... Bc5 {[%clk 0:02:58.4]} 6. Nb3 {[%clk 0:03:00.5]} 6... Be7 {[%clk
0:02:58.6]} 7. O-O {[%clk 0:03:01.4]} 7... d6 {[%clk 0:02:59]} 8. c4 {[%clk
0:02:59.7]} 8... Nd7 {[%clk 0:02:57.4]} 9. Qe2 {[%clk 0:03:00]} 9... Qc7 {[%clk
0:02:57.3]} 10. Nc3 {[%clk 0:03:00.3]} 10... b6 {[%clk 0:02:57.5]} 11. f4 {[%clk
0:03:00.6]} 11... h5 {[%clk 0:02:56.5]} 12. Bd2 {[%clk 0:03:00.5]} 12... Bb7
{[%clk 0:02:56.2]} 13. Rae1 {[%clk 0:02:59.8]} 13... Ngf6 {[%clk 0:02:56.8]} 14.
h3 {[%clk 0:02:55]} 14... h4 {[%clk 0:02:56.4]} 15. Kh2 {[%clk 0:02:54.4]} 15...
Nh5 {[%clk 0:02:54.8]} 16. Qg4 {[%clk 0:02:53.2]} 16... Ng3 {[%clk 0:02:18.6]}
17. Rf3 {[%clk 0:02:52.8]} 17... Nf6 {[%clk 0:00:58.6]} 18. Qxg7 {[%clk
0:02:36.9]} 18... Rg8 {[%clk 0:00:33.5]} 19. Qh6 {[%clk 0:02:34.6]} 19... Rg6
{[%clk 0:00:33.5]} 20. Qh8+ {[%clk 0:02:14.1]} 20... Kd7 {[%clk 0:00:28.9]} 21.
Qxh4 {[%clk 0:02:13.2]} 21... Nfxe4 {[%clk 0:00:18.5]} 22. Qxg3 {[%clk
0:01:54.6]} 22... Nxg3 {[%clk 0:00:17.3]} 23. Rxg3 {[%clk 0:01:55.5]} 23... Rxg3
{[%clk 0:00:16.1]} 24. Kxg3 {[%clk 0:01:56.4]} 24... Rg8+ {[%clk 0:00:15.1]} 25.
Kf2 {[%clk 0:01:47.7]} 25... Bh4+ {[%clk 0:00:15.1]} 26. Ke2 {[%clk 0:01:46.7]}
26... Bxe1 {[%clk 0:00:14.9]} 27. Kxe1 {[%clk 0:01:47.6]} 27... Bxg2 {[%clk
0:00:14.7]} 28. h4 {[%clk 0:01:47.5]} 28... Qd8 {[%clk 0:00:13.2]} 29. Kd1
{[%clk 0:01:45.7]} 29... Qxh4 {[%clk 0:00:12.7]} 30. Kc2 {[%clk 0:01:46.1]}
30... Bf3 {[%clk 0:00:11.2]} 31. Nd4 {[%clk 0:01:45.7]} 31... Qh5 {[%clk
0:00:09.3]} 32. Na4 {[%clk 0:01:42.6]} 32... Bd1+ {[%clk 0:00:07.2]} 33. Kc3
{[%clk 0:01:42]} 33... Bxa4 {[%clk 0:00:08.1]} 34. b3 {[%clk 0:01:42.6]} 34...
Bc6 {[%clk 0:00:07.9]} 35. a4 {[%clk 0:01:41.4]} 35... Rg3 {[%clk 0:00:04.7]}
36. Kc2 {[%clk 0:01:41]} 36... Qh3 {[%clk 0:00:04.6]} 37. Be2 {[%clk 0:01:37.5]}
37... Be4+ {[%clk 0:00:04.6]} 38. Kb2 {[%clk 0:01:37.1]} 38... Rg2 {[%clk
0:00:05.2]} 39. Kc1 {[%clk 0:01:32]} 39... Qh1+ {[%clk 0:00:04.3]} 40. Bd1
{[%clk 0:01:31.2]} 40... Qh2 {[%clk 0:00:05.2]} 41. Bc3 {[%clk 0:01:28.1]} 41...
Ra2 {[%clk 0:00:04.7]} 42. f5 {[%clk 0:01:13.6]} 42... Qf4+ {[%clk 0:00:03.4]}
43. Bd2 {[%clk 0:01:12.1]} 43... Qxd2# {[%clk 0:00:04]} 0-1

[Event "*** SCC Grand Prix: Titled Tuesday Blitz"]
[Site "Chess.com"]
[Date "2020.06.02"]
[Round "7"]
[White "BogdanDeac"]
[Black "Carnivoras"]
[Result "1-0"]
[WhiteElo "2924"]
[BlackElo "2615"]
[TimeControl "180+1"]
[EndTime "11:19:52 PDT"]
[Termination "BogdanDeac won on time"]

1. Nf3 {[%clk 0:03:00.9]} 1... d5 {[%clk 0:02:59.8]} 2. d4 {[%clk 0:03:01]} 2...
Nf6 {[%clk 0:03:00.3]} 3. c4 {[%clk 0:03:01.5]} 3... c6 {[%clk 0:02:59.7]} 4.
Qb3 {[%clk 0:03:00.7]} 4... e6 {[%clk 0:02:56.7]} 5. Bg5 {[%clk 0:02:59]} 5...
Be7 {[%clk 0:02:55.8]} 6. Nc3 {[%clk 0:02:56.6]} 6... O-O {[%clk 0:02:55.6]} 7.
e3 {[%clk 0:02:56.3]} 7... Nbd7 {[%clk 0:02:55.5]} 8. Rd1 {[%clk 0:02:55.8]}
8... h6 {[%clk 0:02:54.4]} 9. Bh4 {[%clk 0:02:54.3]} 9... a6 {[%clk 0:02:54.3]}
10. Bd3 {[%clk 0:02:46.9]} 10... b5 {[%clk 0:02:51.4]} 11. c5 {[%clk 0:02:42.9]}
11... Qc7 {[%clk 0:02:46]} 12. a3 {[%clk 0:02:30.3]} 12... Bb7 {[%clk
0:02:34.8]} 13. O-O {[%clk 0:02:26.5]} 13... Rfe8 {[%clk 0:02:27.4]} 14. Bg3
{[%clk 0:02:19.4]} 14... Qc8 {[%clk 0:02:26]} 15. h3 {[%clk 0:02:18.6]} 15...
Bd8 {[%clk 0:02:25.9]} 16. Ne5 {[%clk 0:02:17.4]} 16... Nxe5 {[%clk 0:02:22.3]}
17. Bxe5 {[%clk 0:02:18.3]} 17... Nd7 {[%clk 0:02:22.1]} 18. f4 {[%clk
0:02:16.8]} 18... Bc7 {[%clk 0:02:03.4]} 19. Qc2 {[%clk 0:02:15]} 19... f6
{[%clk 0:01:51.8]} 20. Bh7+ {[%clk 0:02:03.4]} 20... Kh8 {[%clk 0:01:48.5]} 21.
Bxc7 {[%clk 0:02:03.3]} 21... Qxc7 {[%clk 0:01:49.4]} 22. Bg6 {[%clk 0:02:00.4]}
22... Re7 {[%clk 0:01:49.1]} 23. b4 {[%clk 0:01:59.4]} 23... a5 {[%clk
0:01:28.8]} 24. e4 {[%clk 0:01:58]} 24... Nf8 {[%clk 0:01:00.4]} 25. e5 {[%clk
0:01:56.4]} 25... f5 {[%clk 0:00:51.9]} 26. Bh5 {[%clk 0:01:55.6]} 26... Bc8
{[%clk 0:00:47.6]} 27. Rb1 {[%clk 0:01:48.9]} 27... a4 {[%clk 0:00:43.7]} 28.
Bf3 {[%clk 0:01:44.8]} 28... Bd7 {[%clk 0:00:24.4]} 29. g4 {[%clk 0:01:44.4]}
29... Nh7 {[%clk 0:00:19.1]} 30. gxf5 {[%clk 0:01:40.6]} 30... exf5 {[%clk
0:00:19.6]} 31. Bxd5 {[%clk 0:01:39.3]} 31... cxd5 {[%clk 0:00:20.2]} 32. Nxd5
{[%clk 0:01:39.8]} 32... Qd8 {[%clk 0:00:20.7]} 33. Nxe7 {[%clk 0:01:39.9]}
33... Qxe7 {[%clk 0:00:21.6]} 34. d5 {[%clk 0:01:40.4]} 34... Qh4 {[%clk
0:00:20.9]} 35. Kh2 {[%clk 0:01:38.7]} 35... Be8 {[%clk 0:00:20.7]} 36. Qf2
{[%clk 0:01:36]} 36... Qd8 {[%clk 0:00:20.1]} 37. Rbd1 {[%clk 0:01:33.5]} 37...
Nf8 {[%clk 0:00:20]} 38. e6 {[%clk 0:01:32.6]} 38... Qf6 {[%clk 0:00:18.1]} 39.
Qd4 {[%clk 0:01:32.2]} 39... Qh4 {[%clk 0:00:17.8]} 40. c6 {[%clk 0:01:27.2]}
40... Bh5 {[%clk 0:00:17]} 41. Rd3 {[%clk 0:01:24.3]} 41... Rd8 {[%clk 0:00:14]}
42. Rg3 {[%clk 0:01:16.8]} 42... Nxe6 {[%clk 0:00:12.3]} 43. Qe5 {[%clk
0:01:16.4]} 43... Ng5 {[%clk 0:00:01.2]} 44. fxg5 {[%clk 0:01:14.2]} 44... Re8
{[%clk 0:00:01.1]} 45. Qxf5 {[%clk 0:01:08.9]} 45... Re2+ {[%clk 0:00:02]} 46.
Rf2 {[%clk 0:01:08.3]} 1-0

[Event "*** SCC Grand Prix: Titled Tuesday Blitz"]
[Site "Chess.com"]
[Date "2020.06.02"]
[Round "7"]
[White "Marty435"]
[Black "tylityli"]
[Result "1-0"]
[WhiteElo "2440"]
[BlackElo "2280"]
[TimeControl "180+1"]
[EndTime "11:19:53 PDT"]
[Termination "Marty435 won on time"]

1. e4 {[%clk 0:03:00.9]} 1... e5 {[%clk 0:02:57.8]} 2. Nf3 {[%clk 0:03:01.1]}
2... Nc6 {[%clk 0:02:56.9]} 3. Bb5 {[%clk 0:03:01.3]} 3... a6 {[%clk 0:02:55.4]}
4. Ba4 {[%clk 0:03:01.2]} 4... Nf6 {[%clk 0:02:54.7]} 5. O-O {[%clk 0:03:00.5]}
5... Be7 {[%clk 0:02:50.2]} 6. d3 {[%clk 0:02:59.4]} 6... b5 {[%clk 0:02:45.8]}
7. Bb3 {[%clk 0:02:59.5]} 7... d6 {[%clk 0:02:44.8]} 8. c3 {[%clk 0:02:53.4]}
8... O-O {[%clk 0:02:42.6]} 9. Re1 {[%clk 0:02:52.1]} 9... Bg4 {[%clk
0:02:33.2]} 10. Nbd2 {[%clk 0:02:51]} 10... d5 {[%clk 0:02:29.5]} 11. exd5
{[%clk 0:02:36.9]} 11... Nxd5 {[%clk 0:02:28.5]} 12. h3 {[%clk 0:02:37.4]} 12...
Bh5 {[%clk 0:02:17.4]} 13. Ne4 {[%clk 0:02:27.6]} 13... Nf4 {[%clk 0:01:44.6]}
14. d4 {[%clk 0:02:18.1]} 14... Bxf3 {[%clk 0:01:14.8]} 15. Qxf3 {[%clk
0:02:15.4]} 15... Ng6 {[%clk 0:01:15.2]} 16. Ng3 {[%clk 0:02:06.4]} 16... Na5
{[%clk 0:01:12.4]} 17. dxe5 {[%clk 0:01:58.2]} 17... Nxb3 {[%clk 0:01:10.9]} 18.
axb3 {[%clk 0:01:59.1]} 18... Bc5 {[%clk 0:01:01.4]} 19. b4 {[%clk 0:01:50.3]}
19... Bb6 {[%clk 0:00:59]} 20. Qh5 {[%clk 0:01:37]} 20... Qd5 {[%clk 0:00:49.9]}
21. Be3 {[%clk 0:01:25.1]} 21... a5 {[%clk 0:00:39.6]} 22. Bxb6 {[%clk
0:01:08.5]} 22... cxb6 {[%clk 0:00:40.5]} 23. Nf5 {[%clk 0:01:08.5]} 23... Qb3
{[%clk 0:00:34.8]} 24. bxa5 {[%clk 0:00:49.5]} 24... bxa5 {[%clk 0:00:26.2]} 25.
Qg4 {[%clk 0:00:44.4]} 25... Qxb2 {[%clk 0:00:23.2]} 26. h4 {[%clk 0:00:44.2]}
26... h5 {[%clk 0:00:16.4]} 27. Qxh5 {[%clk 0:00:44.2]} 27... Qxc3 {[%clk
0:00:10.6]} 28. Qg5 {[%clk 0:00:42.7]} 28... Rfe8 {[%clk 0:00:06.3]} 29. h5
{[%clk 0:00:42.7]} 29... Rxe5 {[%clk 0:00:06]} 30. Rf1 {[%clk 0:00:35.2]} 30...
Rxf5 {[%clk 0:00:02.7]} 31. Qxf5 {[%clk 0:00:34.3]} 31... Qe5 {[%clk 0:00:02.8]}
32. Qf3 {[%clk 0:00:29.8]} 1-0

[Event "*** SCC Grand Prix: Titled Tuesday Blitz"]
[Site "Chess.com"]
[Date "2020.06.02"]
[Round "7"]
[White "Quiet_Desperation"]
[Black "The_Machine04"]
[Result "1-0"]
[WhiteElo "2099"]
[BlackElo "2283"]
[TimeControl "180+1"]
[EndTime "11:19:55 PDT"]
[Termination "Quiet_Desperation won on time"]

1. e4 {[%clk 0:03:00.9]} 1... d6 {[%clk 0:02:59.6]} 2. d4 {[%clk 0:03:00.4]}
2... Nf6 {[%clk 0:02:59.5]} 3. Nc3 {[%clk 0:03:00.2]} 3... e5 {[%clk 0:02:58.6]}
4. Nf3 {[%clk 0:03:00.2]} 4... Nbd7 {[%clk 0:02:57.1]} 5. Bc4 {[%clk 0:02:59.5]}
5... Be7 {[%clk 0:02:55.7]} 6. O-O {[%clk 0:02:59.1]} 6... c6 {[%clk 0:02:55.1]}
7. a4 {[%clk 0:02:59.2]} 7... h6 {[%clk 0:02:52]} 8. h3 {[%clk 0:02:59.5]} 8...
Qc7 {[%clk 0:02:52]} 9. Re1 {[%clk 0:02:57.4]} 9... Nf8 {[%clk 0:02:51.4]} 10.
Be3 {[%clk 0:02:53]} 10... Ng6 {[%clk 0:02:50.5]} 11. a5 {[%clk 0:02:50.6]}
11... O-O {[%clk 0:02:46.4]} 12. Nh2 {[%clk 0:02:49]} 12... Kh8 {[%clk
0:02:38.8]} 13. Bd3 {[%clk 0:02:35.5]} 13... Nh7 {[%clk 0:02:31.5]} 14. Ne2
{[%clk 0:02:35.3]} 14... Bg5 {[%clk 0:02:29.7]} 15. Bxg5 {[%clk 0:02:33.5]}
15... Nxg5 {[%clk 0:02:30.6]} 16. c3 {[%clk 0:02:30.4]} 16... Qe7 {[%clk
0:02:20.2]} 17. Qd2 {[%clk 0:02:29.3]} 17... Bxh3 {[%clk 0:02:11]} 18. gxh3
{[%clk 0:02:26.1]} 18... Nxh3+ {[%clk 0:02:11.3]} 19. Kg2 {[%clk 0:02:24.4]}
19... Qh4 {[%clk 0:01:52.9]} 20. Qe3 {[%clk 0:02:22.6]} 20... Ngf4+ {[%clk
0:01:38.6]} 21. Nxf4 {[%clk 0:02:22.5]} 21... Nxf4+ {[%clk 0:01:39.5]} 22. Kh1
{[%clk 0:02:21.8]} 22... Nxd3 {[%clk 0:01:25.5]} 23. Qxd3 {[%clk 0:02:21]} 23...
Qxf2 {[%clk 0:01:26]} 24. Re2 {[%clk 0:02:17.3]} 24... Qh4 {[%clk 0:01:22.2]}
25. Rg1 {[%clk 0:02:17.1]} 25... Rae8 {[%clk 0:01:17.5]} 26. Rg4 {[%clk
0:02:11.8]} 26... Qf6 {[%clk 0:01:13.4]} 27. Reg2 {[%clk 0:02:09.2]} 27... Rg8
{[%clk 0:01:07.8]} 28. d5 {[%clk 0:01:59.6]} 28... cxd5 {[%clk 0:00:52.6]} 29.
Qxd5 {[%clk 0:01:57.7]} 29... Rc8 {[%clk 0:00:47.2]} 30. Qxb7 {[%clk 0:01:49]}
30... Rc4 {[%clk 0:00:22.6]} 31. Qb3 {[%clk 0:01:31.1]} 31... Rc5 {[%clk
0:00:17.3]} 32. Qa4 {[%clk 0:01:22.5]} 32... d5 {[%clk 0:00:13.5]} 33. Qb4
{[%clk 0:01:18.2]} 33... Rc4 {[%clk 0:00:11.8]} 34. Qb5 {[%clk 0:01:10.2]} 34...
Rxe4 {[%clk 0:00:11.3]} 35. Rxe4 {[%clk 0:01:10.1]} 35... dxe4 {[%clk
0:00:12.2]} 36. Qe2 {[%clk 0:01:09]} 36... Rd8 {[%clk 0:00:11.4]} 37. Qxe4
{[%clk 0:01:04.4]} 37... Rd1+ {[%clk 0:00:09.2]} 38. Rg1 {[%clk 0:01:04.6]}
38... Rd2 {[%clk 0:00:08.3]} 39. b4 {[%clk 0:00:47.4]} 39... Qh4 {[%clk
0:00:05.8]} 40. Qxh4 {[%clk 0:00:46.8]} 1-0

[Event "*** SCC Grand Prix: Titled Tuesday Blitz"]
[Site "Chess.com"]
[Date "2020.06.02"]
[Round "7"]
[White "vikber19611"]
[Black "j2806"]
[Result "0-1"]
[WhiteElo "1953"]
[BlackElo "2103"]
[TimeControl "180+1"]
[EndTime "11:19:56 PDT"]
[Termination "j2806 won on time"]

1. e4 {[%clk 0:03:00.9]} 1... c5 {[%clk 0:02:59.3]} 2. Nf3 {[%clk 0:02:59.8]}
2... d6 {[%clk 0:02:59.5]} 3. d4 {[%clk 0:02:59.1]} 3... cxd4 {[%clk 0:02:59.7]}
4. Nxd4 {[%clk 0:02:59]} 4... Nf6 {[%clk 0:03:00.3]} 5. Nc3 {[%clk 0:02:58.9]}
5... a6 {[%clk 0:03:00.8]} 6. Be2 {[%clk 0:02:57.2]} 6... e5 {[%clk 0:03:00.9]}
7. Nf3 {[%clk 0:02:55.9]} 7... Be6 {[%clk 0:03:00.8]} 8. O-O {[%clk 0:02:54.8]}
8... Be7 {[%clk 0:03:00.8]} 9. h3 {[%clk 0:02:46.7]} 9... Nc6 {[%clk 0:03:00.8]}
10. Be3 {[%clk 0:02:45.2]} 10... O-O {[%clk 0:03:00.3]} 11. Qd2 {[%clk
0:02:36.8]} 11... d5 {[%clk 0:02:50.6]} 12. exd5 {[%clk 0:02:30.8]} 12... Nxd5
{[%clk 0:02:49.4]} 13. Nxd5 {[%clk 0:02:24.9]} 13... Bxd5 {[%clk 0:02:44.2]} 14.
Rad1 {[%clk 0:02:19.1]} 14... Be6 {[%clk 0:02:34.4]} 15. a3 {[%clk 0:02:00]}
15... Qc7 {[%clk 0:02:27]} 16. Qc3 {[%clk 0:01:46.6]} 16... Rfd8 {[%clk
0:02:22.3]} 17. Bc5 {[%clk 0:01:38.3]} 17... Bf6 {[%clk 0:02:11.7]} 18. Qe3
{[%clk 0:01:25.9]} 18... Rxd1 {[%clk 0:02:00.1]} 19. Rxd1 {[%clk 0:01:24.8]}
19... Rd8 {[%clk 0:02:00]} 20. Rxd8+ {[%clk 0:01:13.4]} 20... Qxd8 {[%clk
0:01:58.5]} 21. Qd3 {[%clk 0:01:08.7]} 21... Qxd3 {[%clk 0:01:55.6]} 22. Bxd3
{[%clk 0:01:06.5]} 22... Bd5 {[%clk 0:01:39.3]} 23. c4 {[%clk 0:00:49.2]} 23...
Be6 {[%clk 0:01:38.9]} 24. Kf1 {[%clk 0:00:47.9]} 24... g6 {[%clk 0:01:37]} 25.
Ke2 {[%clk 0:00:47.2]} 25... Nd4+ {[%clk 0:01:28.6]} 26. Nxd4 {[%clk 0:00:33.6]}
26... exd4 {[%clk 0:01:28.6]} 27. b3 {[%clk 0:00:29]} 27... Kg7 {[%clk
0:01:25.4]} 28. Be4 {[%clk 0:00:28.3]} 28... Bc8 {[%clk 0:01:22.6]} 29. Kd3
{[%clk 0:00:28.1]} 29... Be5 {[%clk 0:01:18.4]} 30. Bxd4 {[%clk 0:00:26.9]}
30... Kf6 {[%clk 0:01:16.2]} 31. Bxe5+ {[%clk 0:00:24.9]} 31... Kxe5 {[%clk
0:01:16.4]} 32. Ke3 {[%clk 0:00:23.5]} 32... f5 {[%clk 0:01:16.3]} 33. Bd5
{[%clk 0:00:20.7]} 33... b5 {[%clk 0:01:14.9]} 34. Bg8 {[%clk 0:00:18.4]} 34...
h6 {[%clk 0:01:12.7]} 35. cxb5 {[%clk 0:00:13.8]} 35... axb5 {[%clk 0:01:12.7]}
36. a4 {[%clk 0:00:08.8]} 36... bxa4 {[%clk 0:01:12.1]} 37. bxa4 {[%clk
0:00:08.5]} 37... Ba6 {[%clk 0:01:10.7]} 38. f4+ {[%clk 0:00:07]} 38... Kd6
{[%clk 0:01:08.3]} 39. Bh7 {[%clk 0:00:05.5]} 39... Bf1 {[%clk 0:01:06.4]} 40.
Bxg6 {[%clk 0:00:05.3]} 40... Bxg2 {[%clk 0:01:06]} 41. Bxf5 {[%clk 0:00:05.2]}
41... Bc6 {[%clk 0:01:05.4]} 42. h4 {[%clk 0:00:04.9]} 42... Bxa4 {[%clk
0:01:05]} 43. Kd4 {[%clk 0:00:04.6]} 43... Be8 {[%clk 0:01:04.8]} 44. Be4 {[%clk
0:00:04]} 44... Ke6 {[%clk 0:01:04]} 45. Bf3 {[%clk 0:00:03.1]} 45... Kf6 {[%clk
0:01:04.2]} 46. Bg4 {[%clk 0:00:02.6]} 46... Bf7 {[%clk 0:01:03.4]} 47. Ke4
{[%clk 0:00:02]} 47... Bg6+ {[%clk 0:01:03.1]} 0-1

[Event "*** SCC Grand Prix: Titled Tuesday Blitz"]
[Site "Chess.com"]
[Date "2020.06.02"]
[Round "7"]
[White "KerryStead"]
[Black "Boudicca64"]
[Result "1-0"]
[WhiteElo "2091"]
[BlackElo "1966"]
[TimeControl "180+1"]
[EndTime "11:19:57 PDT"]
[Termination "KerryStead won on time"]

1. d4 {[%clk 0:03:00.9]} 1... g6 {[%clk 0:02:57.5]} 2. e4 {[%clk 0:03:00.5]}
2... Bg7 {[%clk 0:02:56.8]} 3. Be3 {[%clk 0:03:00.8]} 3... d6 {[%clk 0:02:50]}
4. Qd2 {[%clk 0:02:59.9]} 4... Nd7 {[%clk 0:02:48.8]} 5. Bc4 {[%clk 0:02:55.4]}
5... e5 {[%clk 0:02:46.8]} 6. Ne2 {[%clk 0:02:53.8]} 6... Qe7 {[%clk 0:02:40]}
7. f3 {[%clk 0:02:53.3]} 7... b6 {[%clk 0:02:35.3]} 8. Nbc3 {[%clk 0:02:46]}
8... c6 {[%clk 0:02:20.4]} 9. a4 {[%clk 0:02:43.9]} 9... Bb7 {[%clk 0:02:17.2]}
10. Bb3 {[%clk 0:02:34.9]} 10... a6 {[%clk 0:01:56.8]} 11. O-O-O {[%clk
0:02:15.5]} 11... O-O-O {[%clk 0:01:52.1]} 12. dxe5 {[%clk 0:02:10.9]} 12...
Nxe5 {[%clk 0:01:49]} 13. Bxb6 {[%clk 0:02:10]} 13... Rd7 {[%clk 0:01:42.9]} 14.
Kb1 {[%clk 0:02:09.5]} 14... Nf6 {[%clk 0:00:55.6]} 15. a5 {[%clk 0:02:03.9]}
15... d5 {[%clk 0:00:53.3]} 16. exd5 {[%clk 0:02:02.8]} 16... cxd5 {[%clk
0:00:51.1]} 17. Nd4 {[%clk 0:01:57.8]} 17... Nc4 {[%clk 0:00:47.9]} 18. Bxc4
{[%clk 0:01:41.4]} 18... dxc4 {[%clk 0:00:46]} 19. Qf4 {[%clk 0:01:41.3]} 19...
Nh5 {[%clk 0:00:30.9]} 20. Qg4 {[%clk 0:01:28.5]} 20... Nf6 {[%clk 0:00:17.7]}
21. Qh4 {[%clk 0:01:18.8]} 21... Qb4 {[%clk 0:00:15.3]} 22. Nde2 {[%clk
0:01:06.2]} 22... Nd5 {[%clk 0:00:13.8]} 23. Bd4 {[%clk 0:01:00.7]} 23... Bxd4
{[%clk 0:00:10.9]} 24. Qxd4 {[%clk 0:01:00.1]} 24... Rhd8 {[%clk 0:00:10.6]} 25.
Nxd5 {[%clk 0:00:52.7]} 25... Rxd5 {[%clk 0:00:09.2]} 26. Qg4+ {[%clk
0:00:39.7]} 26... f5 {[%clk 0:00:07.3]} 27. Rxd5 {[%clk 0:00:39.4]} 27... fxg4
{[%clk 0:00:06.3]} 28. Rxd8+ {[%clk 0:00:39.1]} 28... Kxd8 {[%clk 0:00:06.1]}
29. fxg4 {[%clk 0:00:33.4]} 29... Qd2 {[%clk 0:00:04.8]} 30. Nc3 {[%clk
0:00:31.9]} 30... Bxg2 {[%clk 0:00:04.3]} 31. Rd1 {[%clk 0:00:31.6]} 1-0

[Event "*** SCC Grand Prix: Titled Tuesday Blitz"]
[Site "Chess.com"]
[Date "2020.06.02"]
[Round "7"]
[White "MariaFominykh"]
[Black "isainz"]
[Result "0-1"]
[WhiteElo "2254"]
[BlackElo "2144"]
[TimeControl "180+1"]
[EndTime "11:19:58 PDT"]
[Termination "isainz won by checkmate"]

1. Nf3 {[%clk 0:03:00.9]} 1... d5 {[%clk 0:02:57.4]} 2. g3 {[%clk 0:03:01.5]}
2... Nf6 {[%clk 0:02:56]} 3. Bg2 {[%clk 0:03:02.1]} 3... e6 {[%clk 0:02:55.8]}
4. O-O {[%clk 0:03:02.7]} 4... c6 {[%clk 0:02:55.9]} 5. d3 {[%clk 0:03:03.3]}
5... Be7 {[%clk 0:02:55]} 6. Nbd2 {[%clk 0:03:03.9]} 6... O-O {[%clk 0:02:54.5]}
7. b3 {[%clk 0:03:01.2]} 7... Nbd7 {[%clk 0:02:53.9]} 8. Bb2 {[%clk 0:03:01.9]}
8... b6 {[%clk 0:02:53.9]} 9. e4 {[%clk 0:03:02.4]} 9... Bb7 {[%clk 0:02:53]}
10. e5 {[%clk 0:02:54.5]} 10... Ne8 {[%clk 0:02:48.9]} 11. h4 {[%clk 0:02:54]}
11... c5 {[%clk 0:02:47.2]} 12. c4 {[%clk 0:02:48.5]} 12... d4 {[%clk
0:02:46.9]} 13. Qe2 {[%clk 0:02:48]} 13... Qc7 {[%clk 0:02:44.3]} 14. Rfe1
{[%clk 0:02:41.9]} 14... a5 {[%clk 0:02:29.7]} 15. a3 {[%clk 0:02:36.2]} 15...
h6 {[%clk 0:02:20.6]} 16. b4 {[%clk 0:02:30.5]} 16... axb4 {[%clk 0:02:20]} 17.
axb4 {[%clk 0:02:29.9]} 17... Rxa1 {[%clk 0:01:51.7]} 18. Bxa1 {[%clk
0:02:29.5]} 18... Qb8 {[%clk 0:01:40.5]} 19. b5 {[%clk 0:02:23.3]} 19... g6
{[%clk 0:01:29]} 20. h5 {[%clk 0:02:18.1]} 20... g5 {[%clk 0:01:28.5]} 21. Bb2
{[%clk 0:02:13.6]} 21... Ng7 {[%clk 0:01:27.2]} 22. Nh2 {[%clk 0:02:09.9]} 22...
Bxg2 {[%clk 0:01:16.5]} 23. Kxg2 {[%clk 0:02:10.8]} 23... Qb7+ {[%clk
0:01:15.7]} 24. Kh3 {[%clk 0:01:33.3]} 24... f5 {[%clk 0:01:05.3]} 25. exf6
{[%clk 0:01:31.3]} 25... Nxf6 {[%clk 0:00:59.6]} 26. g4 {[%clk 0:01:19.9]} 26...
Bd6 {[%clk 0:00:46.3]} 27. f3 {[%clk 0:01:06.9]} 27... Bxh2 {[%clk 0:00:32.3]}
28. Qxh2 {[%clk 0:01:04.4]} 28... Ngxh5 {[%clk 0:00:14.8]} 29. gxh5 {[%clk
0:00:59.5]} 29... Nxh5 {[%clk 0:00:14.9]} 30. Qe5 {[%clk 0:00:51.6]} 30... Rxf3+
{[%clk 0:00:13]} 31. Nxf3 {[%clk 0:00:47.7]} 31... Qxf3+ {[%clk 0:00:12.6]} 32.
Kh2 {[%clk 0:00:47.2]} 32... Qf2+ {[%clk 0:00:10.7]} 33. Kh1 {[%clk 0:00:30.5]}
33... Ng3+ {[%clk 0:00:08.6]} 34. Qxg3 {[%clk 0:00:29.3]} 34... Qxg3 {[%clk
0:00:08.8]} 35. Rg1 {[%clk 0:00:23.5]} 35... Qh3# {[%clk 0:00:08.2]} 0-1